bitfinex-derivatives/quotes_BTCF0:USTF0_20241214
["timestamp","ask_amount","ask_price","bid_price","bid_amount"]
[1734134401069,0.50676316,101480.0,101460.0,0.17652249]
[1734134404367,0.50676316,101480.0,101460.0,0.0471]
[1734134404672,0.53150366,101480.0,101460.0,0.22362249]
[1734134405161,0.50676316,101480.0,101460.0,0.22362249]
[1734134405756,0.53150366,101480.0,101460.0,0.58442249]
[1734134405957,0.53150366,101480.0,101460.0,0.22362249]
[1734134406164,0.50676316,101480.0,101460.0,0.22362249]
[1734134406463,0.50676316,101480.0,101460.0,0.17652249]
[1734134406867,0.0612178,101470.0,101460.0,0.17652249]
[1734134409668,0.26808058,101470.0,101460.0,0.17652249]
[1734134410062,0.0612178,101470.0,101460.0,0.17652249]
[1734134411266,0.0612178,101470.0,101460.0,0.53732249]
[1734134411569,0.0612178,101470.0,101460.0,0.17652249]
[1734134412664,0.0651178,101470.0,101460.0,0.17652249]
[1734134414363,0.27198058,101470.0,101460.0,0.17652249]
[1734134415278,0.29672108,101470.0,101460.0,0.17652249]
[1734134416774,0.0898583,101470.0,101460.0,0.17652249]
[1734134417271,0.29672108,101470.0,101460.0,0.17652249]
[1734134419474,0.36570108,101470.0,101460.0,0.17652249]
[1734134419775,0.1340978,101470.0,101460.0,0.17652249]
[1734134420264,0.1340978,101470.0,101460.0,0.53732249]
[1734134420670,0.2277178,101470.0,101460.0,0.53732249]
[1734134420869,0.2277178,101470.0,101460.0,0.77268581]
[1734134421981,0.2374178,101470.0,101460.0,0.53732249]
[1734134422278,0.26204437,101470.0,101460.0,0.53732249]
[1734134422476,0.26602437,101470.0,101460.0,0.53732249]
[1734134423673,0.27390437,101470.0,101460.0,0.53732249]
[1734134424781,0.27780437,101470.0,101460.0,0.53732249]
[1734134425184,0.27780437,101470.0,101460.0,0.17652249]
[1734134425478,0.27780437,101470.0,101460.0,0.53732249]
[1734134426468,0.48466715,101470.0,101460.0,0.53732249]
[1734134426875,0.27780437,101470.0,101460.0,0.53732249]
[1734134427077,0.48466715,101470.0,101460.0,0.53732249]
[1734134427879,0.27780437,101470.0,101460.0,0.53732249]
[1734134428079,0.2531778,101470.0,101460.0,0.53732249]
[1734134428876,0.27782245,101470.0,101460.0,0.53732249]
[1734134429073,0.27782245,101470.0,101460.0,0.17652249]
[1734134430178,0.32708545,101470.0,101460.0,0.17652249]
[1734134430869,0.59516603,101470.0,101460.0,0.17652249]
[1734134431074,0.38830325,101470.0,101460.0,0.17652249]
[1734134431275,0.38830325,101470.0,101450.0,1.09616332]
[1734134431276,0.049268,101460.0,101450.0,1.27268581]
[1734134431472,0.2633036,101460.0,101450.0,0.53732249]
[1734134431772,0.28794825,101460.0,101450.0,0.17652249]
[1734134431973,0.49481103,101460.0,101440.0,1.32726733]
[1734134432174,0.1104908,101450.0,101440.0,1.32726733]
[1734134432384,0.1104908,101450.0,101440.0,1.32776733]
[1734134433277,0.1104908,101450.0,101440.0,1.32726733]
[1734134433780,0.1794908,101450.0,101440.0,1.32726733]
[1734134434479,0.1794908,101450.0,101440.0,1.31708581]
[1734134434881,0.2731308,101450.0,101440.0,1.31708581]
[1734134435278,0.2731308,101450.0,101440.0,1.31658581]
[1734134437383,0.2731308,101450.0,101440.0,1.08122249]
[1734134438080,0.211913,101450.0,101440.0,1.08122249]
[1734134438274,0.2731308,101450.0,101440.0,1.08122249]
[1734134440080,0.2828108,101450.0,101440.0,1.08122249]
[1734134444587,0.2906908,101450.0,101440.0,1.08122249]
[1734134445388,0.2906908,101450.0,101440.0,0.5439]
[1734134446098,0.2906908,101450.0,101440.0,0.9047]
[1734134446392,0.2906908,101450.0,101440.0,0.8613]
[1734134448184,0.2906908,101450.0,101440.0,1.03782249]
[1734134448782,0.2906908,101450.0,101440.0,0.3613]
[1734134451497,0.2906908,101450.0,101440.0,0.0005]
[1734134454592,0.2985708,101450.0,101440.0,0.0005]
[1734134454802,0.00689,101460.0,101440.0,0.89562141]
[1734134455005,0.00689,101460.0,101450.0,0.70646081]
[1734134455299,0.0005,101480.0,101470.0,0.049263]
[1734134455488,0.0005,101480.0,101470.0,1.00831417]
[1734134455891,0.0005,101480.0,101470.0,1.50831417]
[1734134456088,0.03328,101480.0,101470.0,1.74329199]
[1734134456291,0.03278,101480.0,101470.0,1.50831417]
[1734134457304,0.03328,101480.0,101470.0,1.50831417]
[1734134458402,0.03278,101480.0,101470.0,1.50831417]
[1734134458591,0.03278,101480.0,101470.0,1.3320808]
[1734134459397,0.03328,101480.0,101470.0,1.3320808]
[1734134459698,0.03328,101480.0,101470.0,1.34288922]
[1734134460106,0.1437558,101480.0,101470.0,1.28167142]
[1734134460402,0.1432558,101480.0,101470.0,1.28167142]
[1734134461202,0.1432558,101480.0,101470.0,1.2216]
[1734134461501,0.2049736,101480.0,101470.0,1.2216]
[1734134461707,0.1902558,101480.0,101470.0,1.2216]
[1734134462199,0.2514736,101480.0,101470.0,1.2216]
[1734134462396,0.2509736,101480.0,101470.0,1.2216]
[1734134463403,0.2514736,101480.0,101470.0,1.2216]
[1734134464104,0.1902558,101480.0,101470.0,1.2216]
[1734134466397,0.1897558,101480.0,101470.0,1.2216]
[1734134466993,0.1897558,101480.0,101470.0,0.8608]
[1734134467402,0.1897558,101480.0,101470.0,0.5]
[1734134467796,0.1897558,101480.0,101470.0,0.8608]
[1734134467998,0.20048936,101480.0,101470.0,0.8608]
[1734134471996,0.07928,101480.0,101470.0,0.9712808]
[1734134472193,0.03278,101480.0,101470.0,0.9712808]
[1734134472594,0.03278,101480.0,101470.0,1.0156808]
[1734134474001,0.082038,101480.0,101470.0,1.0156808]
[1734134474601,0.00201,101490.0,101480.0,0.049258]
[1734134474803,0.049244,101510.0,101490.0,0.049249]
[1734134475106,0.31245814,101520.0,101510.0,0.049243]
[1734134475107,0.140841,101520.0,101510.0,0.049243]
[1734134475404,0.140841,101520.0,101510.0,0.50318995]
[1734134475405,0.0916,101520.0,101510.0,0.50318995]
[1734134475603,0.049235,101530.0,101510.0,0.50318995]
[1734134475802,0.064975,101530.0,101520.0,0.3608]
[1734134475998,0.064975,101530.0,101520.0,0.45394695]
[1734134476193,0.065105,101530.0,101520.0,0.3608]
[1734134476398,0.065105,101530.0,101520.0,0.8608]
[1734134476598,0.01587,101530.0,101520.0,0.8608]
[1734134477200,0.01574,101530.0,101520.0,0.8608]
[1734134478304,0.064974,101530.0,101520.0,0.8608]
[1734134479502,0.065474,101530.0,101520.0,0.8608]
[1734134483014,0.01624,101530.0,101520.0,0.95394695]
[1734134483213,0.01624,101530.0,101520.0,1.00318595]
[1734134483814,0.01624,101530.0,101520.0,0.95394695]
[1734134484914,0.065474,101530.0,101520.0,0.8608]
[1734134486413,0.15862095,101530.0,101520.0,0.8608]
[1734134486618,0.065474,101530.0,101520.0,0.8608]
[1734134494519,0.064974,101530.0,101520.0,0.8608]
[1734134494919,0.01574,101530.0,101520.0,0.95394695]
[1734134495120,0.01574,101530.0,101520.0,0.92191802]
[1734134495324,0.01574,101530.0,101520.0,0.97115702]
[1734134497225,0.01574,101530.0,101520.0,0.910039]
[1734134498229,0.01574,101530.0,101520.0,1.00318016]
[1734134499819,0.064974,101530.0,101520.0,1.00318016]
[1734134500128,0.064974,101530.0,101520.0,0.910039]
[1734134500327,0.064974,101530.0,101520.0,1.08507104]
[1734134502428,0.064974,101530.0,101520.0,1.31921776]
[1734134504123,0.064974,101530.0,101520.0,1.14418572]
[1734134504427,0.064974,101530.0,101520.0,1.56220124]
[1734134504626,0.064974,101530.0,101520.0,1.57283509]
[1734134506235,0.064974,101530.0,101520.0,1.57284054]
[1734134506828,0.065384,101530.0,101520.0,1.57284054]
[1734134507335,0.065384,101530.0,101520.0,1.80750449]
[1734134508927,0.01615,101530.0,101520.0,1.99378681]
[1734134509134,0.33982523,101560.0,101540.0,0.049229]
[1734134509326,0.31113655,101560.0,101550.0,1.00518766]
[1734134509525,0.193121,101560.0,101550.0,1.79838892]
[1734134509724,0.193121,101560.0,101550.0,1.29838892]
[1734134509928,0.19456893,101560.0,101550.0,1.79838892]
[1734134510328,0.20243893,101560.0,101550.0,1.68090535]
[1734134510533,0.21030893,101560.0,101550.0,1.68090535]
[1734134511230,0.21124972,101560.0,101550.0,1.68090535]
[1734134511534,0.21174972,101560.0,101550.0,1.68090535]
[1734134512228,0.21318995,101560.0,101550.0,1.68090535]
[1734134512428,0.21268995,101560.0,101550.0,1.44654169]
[1734134513433,0.21342474,101560.0,101550.0,1.44654169]
[1734134513638,0.21342474,101560.0,101550.0,1.53968285]
[1734134514438,0.21292474,101560.0,101550.0,1.53968285]
[1734134515439,0.21342474,101560.0,101550.0,1.44654169]
[1734134515638,0.21342474,101560.0,101550.0,1.53968285]
[1734134516340,0.21342474,101560.0,101550.0,1.36396516]
[1734134516538,0.21292474,101560.0,101550.0,1.270824]
[1734134516741,0.21292474,101560.0,101550.0,1.36396516]
[1734134517533,0.21342474,101560.0,101550.0,1.36396516]
[1734134518131,0.16420374,101560.0,101550.0,1.36396516]
[1734134518544,0.21292274,101560.0,101550.0,1.36396516]
[1734134518734,0.208859,101560.0,101550.0,1.36396516]
[1734134519427,0.209359,101560.0,101550.0,1.37472224]
[1734134521429,0.208859,101560.0,101550.0,1.55043993]
[1734134521632,0.208859,101560.0,101550.0,1.37472224]
[1734134521936,0.15964,101560.0,101550.0,1.55043993]
[1734134522131,0.15964,101560.0,101550.0,1.64358109]
[1734134522547,0.16505566,101560.0,101550.0,1.64358109]
[1734134522840,0.16505566,101560.0,101550.0,1.55043993]
[1734134523251,0.16505566,101560.0,101550.0,1.57943711]
[1734134524139,0.16505566,101560.0,101550.0,1.51836794]
[1734134524543,0.21427466,101560.0,101550.0,1.51836794]
[1734134525250,0.21427466,101560.0,101550.0,1.55036302]
[1734134525444,0.21469887,101560.0,101550.0,1.55036302]
[1734134525938,0.21512308,101560.0,101550.0,1.55036302]
[1734134526140,0.21512308,101560.0,101550.0,1.2216]
[1734134527743,0.4199388,101560.0,101550.0,0.5]
[1734134527945,0.42670638,101560.0,101550.0,0.134]
[1734134528237,0.81619506,101560.0,101550.0,0.134]
[1734134528448,0.99227236,101560.0,101550.0,0.134]
[1734134528645,0.049224,101550.0,101540.0,0.5]
[1734134528945,0.26672276,101550.0,101530.0,0.3608]
[1734134529150,0.26672276,101550.0,101540.0,0.5]
[1734134530049,0.27459276,101550.0,101540.0,0.5]
[1734134530342,0.42129699,101550.0,101540.0,0.5]
[1734134530535,1.12141431,101550.0,101540.0,0.5]
[1734134530734,1.32263853,101550.0,101540.0,0.5]
[1734134530932,1.29749161,101550.0,101540.0,0.5]
[1734134531137,1.34539161,101550.0,101540.0,0.5]
[1734134531337,1.19868738,101550.0,101540.0,0.5]
[1734134531533,1.223858,101550.0,101540.0,0.5]
[1734134532847,1.223858,101550.0,101530.0,0.5]
[1734134532848,0.049229,101540.0,101530.0,0.5]
[1734134533039,0.70483955,101540.0,101530.0,0.46400899]
[1734134533240,0.049234,101530.0,101520.0,0.5005]
[1734134533445,0.33650822,101530.0,101520.0,0.5]
[1734134533650,0.38180822,101530.0,101520.0,0.5]
[1734134534052,0.92595148,101530.0,101520.0,0.5]
[1734134534256,0.9511221,101530.0,101520.0,0.5]
[1734134534554,0.77589854,101530.0,101520.0,0.5005]
[1734134535455,0.77589854,101530.0,101520.0,0.5]
[1734134536452,0.95247422,101530.0,101520.0,0.5005]
[1734134536649,0.77589854,101530.0,101520.0,0.5005]
[1734134536957,0.95247422,101530.0,101520.0,0.0005]
[1734134537550,0.049239,101520.0,101510.0,0.5]
[1734134537749,0.18880325,101520.0,101510.0,0.5]
[1734134538356,0.18880325,101520.0,101510.0,0.8608]
[1734134538556,0.20480295,101520.0,101510.0,0.8608]
[1734134538745,0.20480295,101520.0,101510.0,0.5]
[1734134539253,0.20480295,101520.0,101510.0,0.8608]
[1734134542448,0.1117387,101520.0,101510.0,0.8608]
[1734134542663,0.20480295,101520.0,101510.0,0.8608]
[1734134543556,0.20480295,101520.0,101510.0,0.8613]
[1734134544444,0.20480295,101520.0,101510.0,0.8608]
[1734134545552,0.20480295,101520.0,101510.0,0.8613]
[1734134546555,0.20480295,101520.0,101510.0,0.8608]
[1734134547453,0.20480295,101520.0,101510.0,0.8613]
[1734134548457,0.20480295,101520.0,101510.0,0.8608]
[1734134549447,0.20480295,101520.0,101510.0,0.8613]
[1734134549860,0.20572634,101520.0,101510.0,0.8613]
[1734134550454,0.20615527,101520.0,101510.0,0.8613]
[1734134551762,0.20615527,101520.0,101510.0,0.8608]
[1734134553247,0.2354017,101520.0,101510.0,0.8608]
[1734134554053,0.2354017,101520.0,101510.0,0.5]
[1734134554256,0.38251167,101520.0,101510.0,0.5]
[1734134554455,0.2354017,101520.0,101510.0,0.8608]
[1734134555162,0.2432817,101520.0,101510.0,0.8608]
[1734134555350,0.39039167,101520.0,101510.0,0.8608]
[1734134556053,0.39108304,101520.0,101510.0,0.8608]
[1734134556665,0.39108304,101520.0,101510.0,0.9059]
[1734134557162,0.34524399,101520.0,101510.0,0.9059]
[1734134557366,0.52181967,101520.0,101510.0,0.9059]
[1734134557666,0.54671424,101520.0,101510.0,0.9059]
[1734134558058,0.37013856,101520.0,101510.0,0.9059]
[1734134558258,0.37516456,101520.0,101510.0,0.955143]
[1734134558464,0.29164914,101520.0,101510.0,1.23831603]
[1734134558758,0.11794427,101530.0,101520.0,0.049239]
[1734134559059,0.15100997,101540.0,101530.0,0.549234]
[1734134559361,0.0039,101540.0,101530.0,1.19324703]
[1734134559860,0.11483434,101540.0,101530.0,1.13209169]
[1734134560165,0.12270434,101540.0,101530.0,1.08285769]
[1734134561165,0.061549,101540.0,101530.0,1.08285769]
[1734134562369,0.061549,101540.0,101530.0,0.9071]
[1734134562859,0.06262192,101540.0,101530.0,0.9071]
[1734134563671,0.20973189,101540.0,101530.0,0.9071]
[1734134564066,0.21001102,101540.0,101530.0,0.9071]
[1734134565264,0.06290105,101540.0,101530.0,0.9071]
[1734134566965,0.21001102,101540.0,101530.0,0.9071]
[1734134569268,0.30314676,101540.0,101530.0,0.8608]
[1734134569475,0.34479471,101540.0,101530.0,0.8608]
[1734134569767,0.52379495,101540.0,101530.0,0.5]
[1734134569963,0.40160004,101540.0,101530.0,0.5]
[1734134570272,0.37668498,101540.0,101530.0,0.5]
[1734134570458,0.37668498,101540.0,101530.0,0.03920752]
[1734134570459,0.8609093,101540.0,101530.0,0.03920752]
[1734134570660,0.049243,101510.0,101500.0,0.0005]
[1734134570873,0.65641065,101510.0,101500.0,0.5005]
[1734134571169,0.4159871,101510.0,101500.0,0.8613]
[1734134571377,0.50912284,101510.0,101500.0,0.5438]
[1734134571667,0.65641065,101510.0,101500.0,0.5433]
[1734134572273,0.85776103,101510.0,101500.0,0.5]
[1734134572663,0.85776103,101510.0,101500.0,0.5005]
[1734134572861,0.71047322,101510.0,101500.0,0.5005]
[1734134573072,0.85773821,101510.0,101500.0,0.5005]
[1734134573575,0.85773821,101510.0,101500.0,0.5]
[1734134573773,0.90273821,101510.0,101500.0,0.5]
[1734134574177,0.70138783,101510.0,101500.0,0.5]
[1734134574677,0.70138783,101510.0,101500.0,0.5005]
[1734134574870,0.70193783,101510.0,101500.0,0.5005]
[1734134576373,0.70301,101510.0,101500.0,0.5005]
[1734134577164,1.06381,101510.0,101500.0,0.5005]
[1734134577576,1.06381,101510.0,101500.0,0.5]
[1734134577969,0.70301,101510.0,101500.0,0.5]
[1734134578469,1.07414589,101510.0,101500.0,0.5]
[1734134579481,1.09874201,101510.0,101500.0,0.5]
[1734134579679,1.27548739,101510.0,101500.0,0.5]
[1734134579976,1.09874201,101510.0,101500.0,0.5]
[1734134581384,0.73794201,101510.0,101500.0,0.5]
[1734134582174,0.71334589,101510.0,101500.0,0.5]
[1734134583269,0.74256479,101510.0,101500.0,0.5]
[1734134583480,1.12801456,101510.0,101500.0,0.46043648]
[1734134583679,1.10336479,101510.0,101500.0,0.46043648]
[1734134583883,1.12798234,101510.0,101500.0,0.46043648]
[1734134584379,1.10336479,101510.0,101500.0,0.46043648]
[1734134584971,1.1279837,101510.0,101500.0,0.46043648]
[1734134585973,1.1358637,101510.0,101500.0,0.46043648]
[1734134586576,1.33227757,101510.0,101500.0,0.46043648]
[1734134586781,1.13091328,101510.0,101500.0,0.46043648]
[1734134587074,0.98364829,101510.0,101500.0,0.42150648]
[1734134587473,1.16039367,101510.0,101490.0,0.54927795]
[1734134587678,0.53240264,101500.0,101490.0,0.54877795]
[1734134588074,0.55707337,101500.0,101490.0,0.54877795]
[1734134588385,0.56084964,101500.0,101490.0,0.54877795]
[1734134588575,0.20004964,101500.0,101490.0,0.54927795]
[1734134588773,0.17537891,101500.0,101490.0,0.54927795]
[1734134589675,0.17537891,101500.0,101490.0,0.54877795]
[1734134590276,0.53617891,101500.0,101490.0,0.54877795]
[1734134590474,0.56084964,101500.0,101490.0,0.54877795]
[1734134590675,0.56084964,101500.0,101490.0,0.54927795]
[1734134591379,0.56191716,101500.0,101490.0,0.54927795]
[1734134591675,0.56191716,101500.0,101490.0,0.54877795]
[1734134592274,0.59842375,101500.0,101490.0,0.50147795]
[1734134592475,0.62313087,101500.0,101490.0,0.50147795]
[1734134592677,0.62313087,101500.0,101490.0,0.50197795]
[1734134592678,0.56195355,101500.0,101490.0,0.50197795]
[1734134592875,0.73869893,101500.0,101490.0,0.50197795]
[1734134593278,0.56195355,101500.0,101490.0,0.50197795]
[1734134593474,0.56195355,101500.0,101490.0,0.47854795]
[1734134593686,0.79987625,101500.0,101490.0,0.47804795]
[1734134593982,0.73869893,101500.0,101490.0,0.47804795]
[1734134594184,0.79987625,101500.0,101490.0,0.47804795]
[1734134596085,0.80016132,101500.0,101490.0,0.47804795]
[1734134596992,0.80016132,101500.0,101490.0,0.44292901]
[1734134597380,0.67021594,101500.0,101490.0,0.44292901]
[1734134597586,0.87564565,101500.0,101490.0,0.44292901]
[1734134597775,0.92264565,101500.0,101490.0,0.44292901]
[1734134599185,0.049253,101490.0,101480.0,0.5471]
[1734134599377,0.70914862,101490.0,101480.0,0.5471]
[1734134599581,0.73385574,101490.0,101480.0,0.5466]
[1734134600278,0.56279362,101490.0,101480.0,0.5466]
[1734134600787,0.76822333,101490.0,101480.0,0.5471]
[1734134601584,0.76822333,101490.0,101480.0,0.5466]
[1734134601884,0.76929522,101490.0,101480.0,0.5466]
[1734134602079,0.25769714,101490.0,101480.0,0.5466]
[1734134602286,0.24086993,101490.0,101480.0,0.5466]
[1734134602477,0.15535679,101490.0,101480.0,0.956658]
[1734134602683,0.21653411,101490.0,101480.0,0.9074]
[1734134603492,0.06905732,101490.0,101480.0,1.08315769]
[1734134603783,0.06905732,101490.0,101480.0,0.72235769]
[1734134603784,0.17948764,101490.0,101480.0,0.72235769]
[1734134603990,0.17948764,101490.0,101480.0,0.5466]
[1734134604984,0.11831032,101490.0,101480.0,0.5466]
[1734134605783,0.17948764,101490.0,101480.0,0.5466]
[1734134606188,0.17948764,101490.0,101480.0,0.5]
[1734134607285,0.24367058,101490.0,101480.0,0.5]
[1734134608591,0.2450184,101490.0,101480.0,0.5]
[1734134611285,0.25543159,101490.0,101480.0,0.5]
[1734134612990,0.61623159,101490.0,101480.0,0.5]
[1734134613185,1.00499841,101490.0,101480.0,0.5]
[1734134613390,1.21042812,101490.0,101480.0,0.5]
[1734134614190,1.00499841,101490.0,101480.0,0.5]
[1734134614391,1.21042812,101490.0,101480.0,0.5]
[1734134616190,1.00499841,101490.0,101480.0,0.49413324]
[1734134616397,1.21042812,101490.0,101480.0,0.49413324]
[1734134616601,1.44515489,101490.0,101480.0,0.49413324]
[1734134616897,1.42062807,101490.0,101480.0,0.49413324]
[1734134619100,1.2332013,101490.0,101480.0,0.49413324]
[1734134619392,1.25780545,101490.0,101480.0,0.49413324]
[1734134619999,1.27753524,101490.0,101480.0,0.49413324]
[1734134621996,1.51226201,101490.0,101480.0,0.49413324]
[1734134622204,1.48765786,101490.0,101480.0,0.49413324]
[1734134623003,1.28222815,101490.0,101480.0,0.49413324]
[1734134623303,1.54660251,101490.0,101480.0,0.49413324]
[1734134623601,1.28222815,101490.0,101480.0,0.49413324]
[1734134623904,1.04750138,101490.0,101480.0,0.49413324]
[1734134624106,1.0721858,101490.0,101480.0,0.49413324]
[1734134624317,1.04750138,101490.0,101480.0,0.49413324]
[1734134625106,1.04750138,101490.0,101480.0,0.45527689]
[1734134625497,1.51357582,101490.0,101480.0,0.45527689]
[1734134625698,1.48887564,101490.0,101480.0,0.45527689]
[1734134626603,1.28222815,101490.0,101480.0,0.45527689]
[1734134626901,1.04750138,101490.0,101480.0,0.45527689]
[1734134627204,1.07219096,101490.0,101480.0,0.45527689]
[1734134628713,0.83835338,101490.0,101480.0,0.45527689]
[1734134628917,0.66409096,101490.0,101480.0,0.45527689]
[1734134629101,1.02489096,101490.0,101480.0,0.45527689]
[1734134629309,0.93607202,101490.0,101480.0,0.45527689]
[1734134629602,0.96054684,101490.0,101480.0,0.45527689]
[1734134629810,0.93607202,101490.0,101480.0,0.45527689]
[1734134630705,0.57527202,101490.0,101480.0,0.45527689]
[1734134631007,0.96046254,101490.0,101480.0,0.45527689]
[1734134631209,1.16709373,101490.0,101480.0,0.45527689]
[1734134631399,0.83805432,101490.0,101480.0,0.45527689]
[1734134631603,0.61485379,101490.0,101480.0,0.45527689]
[1734134631805,0.646505,101490.0,101480.0,0.49897689]
[1734134632213,0.646505,101490.0,101480.0,0.85977689]
[1734134632404,0.62216341,101490.0,101480.0,0.85977689]
[1734134632605,0.646505,101490.0,101480.0,0.85977689]
[1734134633402,0.62216341,101490.0,101480.0,0.85977689]
[1734134633812,0.44508512,101490.0,101480.0,0.85977689]
[1734134634415,0.67141641,101490.0,101480.0,0.85977689]
[1734134635210,0.73262052,101490.0,101480.0,0.49897689]
[1734134635512,0.75674071,101490.0,101480.0,0.49897689]
[1734134635712,0.94046242,101490.0,101480.0,0.49897689]
[1734134635917,0.57966242,101490.0,101480.0,0.49897689]
[1734134636218,0.57966242,101490.0,101480.0,0.45527689]
[1734134636718,0.78629361,101490.0,101480.0,0.45527689]
[1734134638110,1.14709361,101490.0,101480.0,0.45527689]
[1734134639716,1.14709361,101490.0,101460.0,0.40677838]
[1734134639717,0.049263,101470.0,101460.0,0.40677838]
[1734134639918,0.34878319,101470.0,101460.0,0.90677838]
[1734134640606,0.35013101,101470.0,101460.0,0.90677838]
[1734134640822,0.35013101,101470.0,101460.0,0.90627838]
[1734134641015,0.35801101,101470.0,101460.0,0.90627838]
[1734134641913,0.35801101,101470.0,101460.0,0.90677838]
[1734134642316,0.2968069,101470.0,101460.0,0.90677838]
[1734134642717,0.2968069,101470.0,101460.0,0.90627838]
[1734134643707,0.2968069,101470.0,101460.0,0.90677838]
[1734134645116,0.30695114,101470.0,101460.0,0.90677838]
[1734134646218,0.30695114,101470.0,101460.0,0.86277838]
[1734134649927,0.30695114,101470.0,101460.0,0.86227838]
[1734134655922,0.67123114,101470.0,101460.0,0.86227838]
[1734134656116,0.69535133,101470.0,101460.0,0.86227838]
[1734134656930,0.71549659,101470.0,101460.0,0.86227838]
[1734134658933,0.60054682,101470.0,101460.0,0.50147838]
[1734134659421,0.80717801,101470.0,101460.0,0.50147838]
[1734134662519,0.60054682,101470.0,101460.0,0.50147838]
[1734134663943,0.96134682,101470.0,101460.0,0.50147838]
[1734134664125,1.16797801,101470.0,101460.0,0.50147838]
[1734134664335,0.96134682,101470.0,101460.0,0.50147838]
[1734134665327,1.16797801,101470.0,101460.0,0.50147838]
[1734134665926,1.17187801,101470.0,101460.0,0.50147838]
[1734134668633,0.96524682,101470.0,101460.0,0.50147838]
[1734134668836,1.16797801,101470.0,101460.0,0.50147838]
[1734134670526,1.1690476,101470.0,101460.0,0.50147838]
[1734134670826,0.96241641,101470.0,101460.0,0.50147838]
[1734134671532,1.1690476,101470.0,101460.0,0.50147838]
[1734134671939,1.1729476,101470.0,101460.0,0.50147838]
[1734134673342,0.96631641,101470.0,101460.0,0.50147838]
[1734134673738,1.40767437,101470.0,101460.0,0.50147838]
[1734134674036,1.38259609,101470.0,101460.0,0.50147838]
[1734134674332,1.1759649,101470.0,101460.0,0.50147838]
[1734134674539,1.40781938,101470.0,101460.0,0.50147838]
[1734134674734,1.14786932,101470.0,101460.0,0.50147838]
[1734134674929,1.17309289,101470.0,101460.0,0.50147838]
[1734134675129,1.20118847,101470.0,101460.0,0.50147838]
[1734134675431,1.40787858,101470.0,101460.0,0.50147838]
[1734134675637,1.38265501,101470.0,101460.0,0.50147838]
[1734134677140,1.1759649,101470.0,101460.0,0.50147838]
[1734134677332,1.20114287,101470.0,101460.0,0.50147838]
[1734134678033,1.19724287,101470.0,101460.0,0.50147838]
[1734134678830,1.19831039,101470.0,101460.0,0.50147838]
[1734134679231,1.17027687,101470.0,101460.0,0.50147838]
[1734134679433,1.19831039,101470.0,101460.0,0.50147838]
[1734134679834,1.19859588,101470.0,101460.0,0.50147838]
[1734134680034,1.19859588,101470.0,101460.0,0.45565978]
[1734134680231,1.19859588,101470.0,101460.0,0.43374485]
[1734134680441,0.049268,101460.0,101450.0,0.55470347]
[1734134680641,0.42349218,101460.0,101450.0,0.58375347]
[1734134680838,0.75345863,101490.0,101480.0,2.4e-07]
[1734134681038,0.049258,101480.0,101470.0,0.36076024]
[1734134681231,0.51784389,101480.0,101470.0,0.36076024]
[1734134681435,0.43602877,101480.0,101470.0,0.38322024]
[1734134681949,0.24075033,101480.0,101470.0,0.38322024]
[1734134683241,0.24075033,101480.0,101470.0,0.37714465]
[1734134683539,0.24075033,101480.0,101470.0,0.02246]
[1734134683747,0.049263,101470.0,101460.0,0.24222344]
[1734134683941,0.21737122,101470.0,101460.0,0.24222344]
[1734134686549,0.21737122,101470.0,101460.0,0.24832344]
[1734134687843,0.58173122,101470.0,101460.0,0.24832344]
[1734134690750,0.60573975,101470.0,101460.0,0.24832344]
[1734134691345,0.43763153,101470.0,101460.0,0.24832344]
[1734134691550,0.47482711,101470.0,101460.0,0.29452344]
[1734134691848,0.48526711,101470.0,101460.0,0.29452344]
[1734134693543,0.48526711,101470.0,101460.0,0.31589344]
[1734134693745,0.54647122,101470.0,101460.0,0.31589344]
[1734134695447,0.56640826,101470.0,101460.0,0.31589344]
[1734134697956,0.56640826,101470.0,101460.0,0.10279]
[1734134698149,0.56640826,101470.0,101460.0,0.46359]
[1734134699056,0.56640826,101470.0,101460.0,0.46634]
[1734134700252,0.56640826,101470.0,101460.0,0.42752852]
[1734134700451,0.56640826,101470.0,101460.0,0.41404]
[1734134700756,0.61100826,101470.0,101460.0,0.41404]
[1734134704862,0.61264966,101470.0,101460.0,0.41404]
[1734134711664,0.49024144,101470.0,101460.0,0.41404]
[1734134711862,0.61264966,101470.0,101460.0,0.41404]
[1734134716574,0.6978623,101470.0,101460.0,0.01429]
[1734134716770,0.049268,101460.0,101450.0,0.3608]
[1734134716971,0.30834702,101460.0,101450.0,0.3608]
[1734134717867,0.30998842,101460.0,101450.0,0.3608]
[1734134718670,0.28422173,101460.0,101450.0,0.3608]
[1734134720769,0.30998842,101460.0,101450.0,0.3608]
[1734134722470,0.28422173,101460.0,101450.0,0.3608]
[1734134724380,0.28422173,101460.0,101450.0,0.3398]
[1734134725175,0.74358759,101460.0,101440.0,0.3247264]
[1734134725365,0.11047711,101450.0,101440.0,0.28489]
[1734134725783,0.15827711,101450.0,101440.0,0.28489]
[1734134726082,0.15827711,101450.0,101440.0,0.28539]
[1734134726083,0.1856852,101450.0,101440.0,0.28539]
[1734134726677,0.24688931,101450.0,101440.0,0.28539]
[1734134726880,0.24688931,101450.0,101440.0,0.28489]
[1734134727881,0.22112262,101450.0,101440.0,0.0005]
[1734134728078,0.27012262,101450.0,101440.0,0.0005]
[1734134728780,0.1477144,101450.0,101440.0,0.0005]
[1734134728980,0.049277,101440.0,101430.0,1.009]
[1734134729276,0.17168522,101440.0,101430.0,1.009]
[1734134729869,0.17332662,101440.0,101430.0,1.009]
[1734134730874,0.17332662,101440.0,101430.0,1.0095]
[1734134731988,0.17332662,101440.0,101430.0,1.009]
[1734134732985,0.17332662,101440.0,101430.0,1.0095]
[1734134733985,0.0509184,101440.0,101430.0,1.009]
[1734134734286,0.17332662,101440.0,101430.0,1.009]
[1734134735080,0.17332662,101440.0,101430.0,1.0095]
[1734134740093,0.0509184,101440.0,101430.0,1.0095]
[1734134740294,0.17332662,101440.0,101430.0,1.0095]
[1734134740590,0.53776662,101440.0,101430.0,1.0095]
[1734134740983,0.53776662,101440.0,101430.0,1.009]
[1734134743890,0.55786813,101440.0,101430.0,1.009]
[1734134750490,0.55786813,101440.0,101430.0,0.96959811]
[1734134750990,0.55786813,101440.0,101430.0,0.9599]
[1734134753796,0.58363482,101440.0,101430.0,0.9599]
[1734134754183,0.55786813,101440.0,101430.0,0.9599]
[1734134758295,0.64483893,101440.0,101430.0,0.9599]
[1734134758492,0.64483893,101440.0,101430.0,0.4603831]
[1734134758688,0.049282,101430.0,101420.0,0.9082]
[1734134758884,0.13581978,101430.0,101420.0,0.35271481]
[1734134759191,0.18356118,101430.0,101420.0,0.35271481]